bitfinex/quotes_BTCUSD_20250129
["timestamp","ask_amount","ask_price","bid_price","bid_amount"]
[1738173896425,0.24417616,102090.0,102070.0,0.34326165]
[1738173896634,0.24417616,102090.0,102070.0,0.53919665]
[1738173896635,0.44008316,102090.0,102070.0,0.53919665]
[1738173897036,0.09724316,102090.0,102080.0,0.146943]
[1738173897204,0.44007916,102090.0,102070.0,0.53918865]
[1738173897380,0.63598616,102090.0,102070.0,0.53918865]
[1738173897590,0.09724316,102090.0,102080.0,0.146943]
[1738173897825,0.12621172,102090.0,102080.0,0.146943]
[1738173898053,0.12621172,102090.0,102080.0,0.14731665]
[1738173898260,0.46904572,102090.0,102070.0,0.34325465]
[1738173898466,0.12621172,102090.0,102080.0,0.146943]
[1738173899255,0.12621279,102090.0,102080.0,0.146943]
[1738173899463,0.12621279,102090.0,102080.0,0.14731665]
[1738173900135,0.27436618,102090.0,102070.0,0.61532715]
[1738173900343,0.02896963,102090.0,102080.0,0.14813636]
[1738173900549,0.02896963,102090.0,102080.0,0.24813636]
[1738173901396,0.02896963,102090.0,102080.0,0.35537952]
[1738173901847,0.04707742,102110.0,102100.0,0.24728765]
[1738173902446,0.04707742,102110.0,102100.0,0.32278765]
[1738173902658,0.00029925,102120.0,102110.0,0.24727365]
[1738173902901,0.00029925,102120.0,102110.0,0.35451681]
[1738173903076,0.00044408,102120.0,102110.0,0.45451681]
[1738173903284,0.00044408,102120.0,102110.0,0.47043681]
[1738173903701,0.00044408,102120.0,102110.0,0.96007681]
[1738173904120,0.00044408,102120.0,102110.0,0.85082086]
[1738173904325,0.00044408,102120.0,102110.0,0.6535777]
[1738173904534,0.00044408,102120.0,102110.0,0.7535777]
[1738173904946,0.00044408,102120.0,102110.0,0.6535777]
[1738173905155,0.00044408,102120.0,102110.0,0.5066777]
[1738173905369,0.00044408,102120.0,102110.0,0.65320405]
[1738173905586,0.00044408,102120.0,102110.0,0.6555777]
[1738173906225,0.00044408,102120.0,102110.0,0.75282086]
[1738173906434,0.00044408,102120.0,102110.0,0.86282086]
[1738173906651,0.00044408,102120.0,102110.0,0.94142086]
[1738173907300,0.00044408,102120.0,102110.0,0.93142086]
[1738173907515,0.00044408,102120.0,102110.0,0.94142086]
[1738173908192,0.00044408,102120.0,102110.0,0.93142086]
[1738173908374,0.00044408,102120.0,102110.0,0.92942086]
[1738173908592,0.00044408,102120.0,102110.0,0.93242086]
[1738173908983,0.00044408,102120.0,102110.0,0.8321777]
[1738173909427,0.00044408,102120.0,102110.0,0.6575777]
[1738173909842,0.00044408,102120.0,102110.0,0.6535777]
[1738173910328,0.00044408,102120.0,102110.0,0.6555777]
[1738173910478,0.00044408,102120.0,102110.0,0.65520405]
[1738173910697,0.14733008,102120.0,102110.0,0.65520405]
[1738173910907,0.24457324,102120.0,102110.0,0.50830405]
[1738173911155,0.09768724,102120.0,102110.0,0.6555777]
[1738173911617,0.24457324,102120.0,102110.0,0.5086777]
[1738173911852,0.39457324,102120.0,102110.0,0.49238405]
[1738173912097,0.65025127,102120.0,102110.0,0.49238405]
[1738173912308,0.39457324,102120.0,102110.0,0.49238405]
[1738173912542,0.39457324,102120.0,102110.0,0.00074405]
[1738173912967,0.39457324,102120.0,102110.0,0.002]
[1738173913173,0.24457324,102120.0,102110.0,0.14966215]
[1738173913410,0.09768724,102120.0,102110.0,0.1480358]
[1738173913627,0.00044408,102120.0,102110.0,0.2480358]
[1738173913830,0.00444408,102120.0,102110.0,0.2480358]
[1738173914241,0.00444408,102120.0,102110.0,0.24766215]
[1738173914578,0.00444408,102120.0,102110.0,0.1480358]
[1738173915034,0.00444408,102120.0,102110.0,0.2480358]
[1738173915250,0.00044408,102120.0,102110.0,0.67947528]
[1738173915453,0.00144408,102120.0,102110.0,0.68947528]
[1738173915658,0.00144408,102120.0,102110.0,0.73887528]
[1738173915863,0.00044408,102120.0,102110.0,0.83887528]
[1738173916281,0.00044408,102120.0,102110.0,0.84087528]
[1738173916707,0.00044408,102120.0,102110.0,0.47537896]
[1738173916912,0.00044408,102120.0,102110.0,0.14966215]
[1738173917118,0.00044408,102120.0,102110.0,0.24966215]
[1738173917326,0.00044408,102120.0,102110.0,0.2500358]
[1738173917538,0.00044408,102120.0,102110.0,0.24966215]
[1738173917949,0.00044408,102120.0,102110.0,0.2500358]
[1738173918356,0.00044408,102120.0,102110.0,0.70077528]
[1738173918807,0.00044408,102120.0,102110.0,0.70177528]
[1738173919004,0.00044408,102120.0,102110.0,0.44627896]
[1738173919215,0.00044408,102120.0,102110.0,0.70077528]
[1738173919623,0.00044408,102120.0,102110.0,0.44727896]
[1738173919874,0.00044408,102120.0,102110.0,0.34727896]
[1738173920217,0.00044408,102120.0,102110.0,0.44727896]
[1738173920415,0.00044408,102120.0,102110.0,0.34727896]
[1738173921928,0.00044408,102120.0,102110.0,0.49727896]
[1738173922127,0.00044408,102120.0,102110.0,0.75277528]
[1738173922663,0.00044408,102120.0,102110.0,1.24241528]
[1738173923095,0.00044408,102120.0,102110.0,1.25241528]
[1738173923619,0.00044408,102120.0,102110.0,0.7396758]
[1738173924056,0.00044408,102120.0,102110.0,0.73930215]
[1738173924272,0.39457324,102120.0,102110.0,0.49240215]
[1738173924471,0.24768724,102120.0,102110.0,0.6396758]
[1738173924689,0.39457324,102120.0,102110.0,0.6396758]
[1738173924890,0.39457324,102120.0,102110.0,0.4927758]
[1738173925101,0.39457324,102120.0,102110.0,0.6376758]
[1738173925237,0.39457324,102120.0,102110.0,0.49040215]
[1738173925436,0.39457324,102120.0,102110.0,0.49140215]
[1738173925663,0.39457324,102120.0,102110.0,0.63830215]
[1738173925872,0.39457324,102120.0,102110.0,0.6386758]
[1738173926070,0.24768724,102120.0,102110.0,0.6386758]
[1738173926312,0.39457324,102120.0,102110.0,0.4917758]
[1738173926740,0.75616956,102120.0,102110.0,0.49140215]
[1738173926936,0.85225711,102120.0,102110.0,0.49140215]
[1738173927256,0.87188346,102120.0,102110.0,0.00176215]
[1738173927377,0.87188346,102120.0,102080.0,0.0001423]
[1738173927378,0.319929,102090.0,102080.0,0.0001423]
[1738173927587,0.41717216,102090.0,102080.0,0.0001423]
[1738173927797,0.41717216,102090.0,102080.0,0.00077148]
[1738173927993,0.39417216,102090.0,102080.0,0.00077148]
[1738173928197,0.24724316,102090.0,102080.0,0.14771448]
[1738173928405,0.538657,102110.0,102090.0,0.34283]
[1738173928613,0.09724316,102100.0,102090.0,0.19627865]
[1738173929019,0.09724316,102100.0,102090.0,0.19688863]
[1738173929240,0.24415716,102100.0,102090.0,0.14791263]
[1738173929650,0.44621874,102100.0,102090.0,0.00060998]
[1738173929870,0.70171506,102100.0,102090.0,0.00060998]
[1738173930515,0.44621874,102100.0,102090.0,0.00060998]
[1738173930729,0.44621874,102100.0,102090.0,0.00160998]
[1738173930940,0.27024316,102100.0,102090.0,0.14853898]
[1738173931147,0.27024316,102100.0,102090.0,0.14891263]
[1738173931148,0.09724316,102100.0,102090.0,0.14891263]
[1738173931391,0.04754408,102120.0,102100.0,0.34316065]
[1738173931618,0.14733008,102120.0,102110.0,0.14727365]
[1738173931804,0.24457324,102120.0,102110.0,0.14784526]
[1738173932209,0.24457324,102120.0,102110.0,0.00057161]
[1738173932413,0.39457324,102120.0,102110.0,0.14784526]
[1738173932643,0.09768724,102120.0,102110.0,0.24784526]
[1738173932833,0.00044408,102120.0,102110.0,0.24784526]
[1738173933170,0.00044408,102120.0,102110.0,0.60058474]
[1738173933380,0.00044408,102120.0,102110.0,0.83368474]
[1738173933587,0.00044408,102120.0,102110.0,0.57818842]
[1738173934089,0.00144408,102120.0,102110.0,0.57818842]
[1738173934298,0.00144408,102120.0,102110.0,0.83368474]
[1738173934504,0.00044408,102120.0,102110.0,0.57818842]
[1738173934704,0.00044408,102120.0,102110.0,0.48057161]
[1738173934910,0.00044408,102120.0,102110.0,0.48394526]
[1738173935251,0.00044408,102120.0,102110.0,0.57818842]
[1738173935464,0.00044408,102120.0,102110.0,0.83368474]
[1738173935666,0.00044408,102120.0,102110.0,0.84668474]
[1738173936080,8e-08,102120.0,102110.0,0.99708393]
[1738173936444,8e-08,102120.0,102110.0,0.91668393]
[1738173936669,8e-08,102120.0,102110.0,0.63078842]
[1738173937057,8e-08,102120.0,102110.0,0.98328474]
[1738173937279,8e-08,102120.0,102110.0,0.99328474]
[1738173937495,8e-08,102120.0,102110.0,0.99628474]
[1738173937718,8e-08,102120.0,102110.0,1.04667312]
[1738173938151,8e-08,102120.0,102110.0,1.04367312]
[1738173938364,0.00100008,102120.0,102110.0,1.00628474]
[1738173938574,0.00100008,102120.0,102110.0,1.02152474]
[1738173938787,0.00100008,102120.0,102110.0,0.58081477]
[1738173939013,8e-08,102120.0,102110.0,0.24784526]
[1738173939436,8e-08,102120.0,102110.0,0.14784526]
[1738173939649,8e-08,102120.0,102110.0,0.24784526]
[1738173940614,8e-08,102120.0,102110.0,0.25084526]
[1738173940822,0.24412924,102120.0,102110.0,0.15084526]
[1738173941039,0.24412924,102120.0,102110.0,0.14784526]
[1738173941282,0.24412924,102120.0,102110.0,0.00094526]
[1738173941446,0.24412924,102120.0,102110.0,0.15084526]
[1738173942334,8e-08,102120.0,102110.0,0.25084526]
[1738173942499,0.24412924,102120.0,102110.0,0.15084526]
[1738173942713,0.24412924,102120.0,102110.0,0.00357161]
[1738173942919,0.39412924,102120.0,102110.0,0.00357161]
[1738173943124,0.41712924,102120.0,102110.0,0.00357161]
[1738173943335,0.44382924,102120.0,102110.0,0.00357161]
[1738173943947,0.46682924,102120.0,102110.0,0.00357161]
[1738173944541,0.72232556,102120.0,102110.0,0.00357161]
[1738173944745,0.75138317,102120.0,102110.0,0.00357161]
[1738173944946,0.49588685,102120.0,102110.0,0.00357161]
[1738173945549,0.49588685,102120.0,102110.0,0.00371381]
[1738173945716,0.75168179,102120.0,102110.0,0.00371381]
[1738173945916,0.83258179,102120.0,102110.0,0.00371381]
[1738173946117,0.80352418,102120.0,102110.0,0.00371381]
[1738173946436,0.46712786,102120.0,102110.0,0.00375206]
[1738173946638,0.63293673,102120.0,102110.0,0.00375206]
[1738173947245,0.46712786,102120.0,102110.0,0.00375206]
[1738173947450,0.46712786,102120.0,102110.0,0.00175206]
[1738173947700,0.44412786,102120.0,102110.0,0.00175206]
[1738173947823,0.44412786,102120.0,102110.0,0.00075206]
[1738173948026,0.46712786,102120.0,102110.0,0.00075206]
[1738173948230,0.47112786,102120.0,102110.0,0.00075206]
[1738173948417,0.50019616,102120.0,102110.0,0.00075206]
[1738173949485,0.42749616,102120.0,102110.0,0.00075206]
[1738173949676,0.42349616,102120.0,102110.0,0.00075206]
[1738173949874,0.42449616,102120.0,102110.0,0.00075206]
[1738173950092,0.42449616,102120.0,102110.0,0.14765206]
[1738173950290,0.24854186,102120.0,102110.0,0.14802571]
[1738173950544,0.09854186,102120.0,102110.0,0.24802571]
[1738173950950,0.0002987,102120.0,102110.0,0.24802571]
[1738173951572,0.0002987,102120.0,102110.0,0.14802571]
[1738173951785,0.1471847,102120.0,102110.0,0.14765206]
[1738173952107,0.09754186,102120.0,102110.0,0.14765206]
[1738173952313,0.09754186,102120.0,102110.0,0.14802571]
[1738173953679,0.0002987,102120.0,102110.0,0.14802571]
[1738173953883,0.0002987,102120.0,102110.0,0.24802571]
[1738173954117,0.0002987,102120.0,102110.0,0.78387774]
[1738173954723,0.02908375,102130.0,102120.0,0.35037365]
[1738173954935,0.00029925,102150.0,102140.0,0.32983065]
[1738173955171,0.00029925,102150.0,102140.0,0.79258268]
[1738173955323,0.00029925,102150.0,102140.0,0.79313501]
[1738173955556,0.00029925,102150.0,102140.0,0.79339613]
[1738173955772,0.00029925,102150.0,102140.0,1.28289613]
[1738173955981,0.00029925,102150.0,102140.0,1.11671361]
[1738173956812,0.00029925,102150.0,102140.0,1.28289613]
[1738173957027,0.00029925,102150.0,102140.0,1.28389613]
[1738173957445,0.00029925,102150.0,102140.0,1.28352248]
[1738173957648,0.00029925,102150.0,102140.0,1.28389613]
[1738173957861,0.00029925,102150.0,102140.0,1.38389613]
[1738173958069,0.00029925,102150.0,102140.0,1.39389613]
[1738173958333,0.00029925,102150.0,102140.0,1.41389613]
[1738173958920,2.5e-07,102150.0,102140.0,2.44394513]
[1738173959127,2.5e-07,102150.0,102140.0,1.32917437]
[1738173959548,2.5e-07,102150.0,102140.0,1.35763681]
[1738173959757,0.04711723,102170.0,102160.0,0.50350165]
[1738173959963,0.00029946,102190.0,102160.0,0.50350165]
[1738173959964,0.00029946,102190.0,102180.0,0.10037365]
[1738173960176,0.00029946,102190.0,102180.0,0.34441581]
[1738173960391,0.00029946,102190.0,102180.0,0.736129]
[1738173960597,0.00029946,102190.0,102180.0,0.76502503]
[1738173960823,0.00029946,102190.0,102180.0,0.73689043]
[1738173961031,0.00034776,102190.0,102180.0,0.73726408]
[1738173961645,0.00034776,102190.0,102180.0,0.76502503]
[1738173962489,0.00034776,102190.0,102180.0,0.63689043]
[1738173962701,0.00034776,102190.0,102180.0,0.63726408]
[1738173963365,0.00034776,102190.0,102180.0,0.63826408]
[1738173963786,0.00034776,102190.0,102180.0,0.63726408]
[1738173964231,0.00034776,102190.0,102180.0,0.63889043]
[1738173964447,0.24559916,102190.0,102180.0,0.49209143]
[1738173964658,0.58283845,102190.0,102180.0,0.49209143]
[1738173965084,0.58283845,102190.0,102180.0,0.00276143]
[1738173965522,0.39437592,102190.0,102180.0,0.00076143]
[1738173965943,0.39437592,102190.0,102180.0,0.00176143]
[1738173966326,0.39437592,102190.0,102180.0,0.00076143]
[1738173966780,0.39537592,102190.0,102180.0,0.00076143]
[1738173967407,0.24537592,102190.0,102180.0,0.14756043]
[1738173967618,0.24537592,102190.0,102180.0,0.00104167]
[1738173967820,0.09859092,102190.0,102180.0,0.14784067]
[1738173968024,0.24537592,102190.0,102180.0,0.14784067]
[1738173968240,0.24537592,102190.0,102180.0,0.00066802]
[1738173968441,0.24537592,102190.0,102180.0,0.14784067]
[1738173968855,0.24537592,102190.0,102180.0,0.00066802]
[1738173969061,0.58383845,102190.0,102180.0,0.00066802]
[1738173969267,0.13964259,102180.0,102170.0,0.00037365]
[1738173969509,0.146814,102170.0,102160.0,0.10336]
[1738173969722,0.43251969,102170.0,102160.0,0.10336]
[1738173969942,0.43251969,102170.0,102160.0,0.10373365]
[1738173969943,0.26705716,102170.0,102160.0,0.10373365]
[1738173970364,0.26705716,102170.0,102140.0,0.58739]
[1738173970365,0.15,102160.0,102140.0,0.00037365]
[1738173970610,0.43989016,102150.0,102130.0,0.342695]
[1738173970828,0.146871,102130.0,102120.0,0.195834]
[1738173971031,0.09724316,102130.0,102120.0,0.10037365]
[1738173971241,0.24411416,102130.0,102120.0,0.29622065]
[1738173971460,0.39266253,102150.0,102130.0,0.342694]
[1738173971461,0.0772,102150.0,102130.0,0.342694]
[1738173971671,0.09724316,102150.0,102140.0,0.19617065]
[1738173971902,0.09724316,102150.0,102140.0,0.39245973]
[1738173972338,0.24408516,102150.0,102140.0,0.00085473]
[1738173972546,0.09724316,102150.0,102140.0,0.14771173]
[1738173973222,0.388285,102170.0,102150.0,0.342618]
[1738173973407,0.388285,102170.0,102150.0,0.14721565]
[1738173973408,0.09724316,102160.0,102150.0,0.14721565]
[1738173973622,0.296825,102170.0,102160.0,0.146828]
[1738173973837,0.24405716,102170.0,102160.0,0.146828]
[1738173974046,0.24405716,102170.0,102160.0,0.14720165]
[1738173974307,0.09724316,102170.0,102160.0,0.14720165]
[1738173974684,0.37150832,102180.0,102160.0,0.34366599]
[1738173974895,0.24405716,102170.0,102160.0,0.00107999]
[1738173975100,0.24405716,102170.0,102160.0,0.00070634]
[1738173975314,0.24405716,102170.0,102160.0,0.14753434]
[1738173975527,0.24405716,102170.0,102160.0,0.14790799]
[1738173975771,0.24405716,102170.0,102160.0,0.00107999]
[1738173975987,0.24405716,102170.0,102160.0,0.14790799]
[1738173976367,0.09724316,102170.0,102160.0,0.14790799]
[1738173976592,0.001,102170.0,102160.0,0.14790799]
[1738173977005,0.001,102170.0,102160.0,0.22700799]
[1738173977426,0.001,102170.0,102160.0,0.51925115]
[1738173977637,0.001,102170.0,102160.0,0.63925115]
[1738173978681,0.001,102170.0,102160.0,1.12865115]
[1738173979242,0.00029946,102190.0,102180.0,0.246799]
[1738173979441,0.00029946,102190.0,102180.0,0.14784067]
[1738173980062,0.00029946,102190.0,102180.0,0.14746702]
[1738173980255,0.00029946,102190.0,102180.0,0.14784067]
[1738173980462,0.24447251,102190.0,102180.0,0.00066802]
[1738173980701,0.40993504,102190.0,102180.0,0.00066802]
[1738173980901,0.24447251,102190.0,102180.0,0.00066802]
[1738173981114,0.39447251,102190.0,102180.0,0.00066802]
[1738173981324,0.55993504,102190.0,102180.0,0.00066802]
[1738173981539,0.58293504,102190.0,102180.0,0.00066802]
[1738173981750,0.09768751,102190.0,102180.0,0.00104167]
[1738173981969,0.00044435,102190.0,102180.0,0.14784067]
[1738173982391,0.00044435,102190.0,102180.0,0.24784067]
[1738173983427,0.00044435,102190.0,102180.0,0.24884067]
[1738173983626,0.00044435,102190.0,102180.0,0.14884067]
[1738173984564,0.00044435,102190.0,102180.0,0.34608383]
[1738173984969,0.00044435,102190.0,102180.0,0.14884067]
[1738173985115,0.00044435,102190.0,102180.0,0.24884067]
[1738173985495,0.00044435,102190.0,102180.0,0.34608383]
[1738173986311,0.00044435,102190.0,102180.0,0.24884067]
[1738173987692,0.00044435,102190.0,102180.0,0.60608383]
[1738173987904,3.5e-07,102190.0,102180.0,1.12578139]
[1738173988116,3.5e-07,102190.0,102180.0,1.20648139]
[1738173988364,3.5e-07,102190.0,102180.0,1.24948139]
[1738173988581,6e-07,102200.0,102190.0,0.29715865]
[1738173988793,6e-07,102200.0,102190.0,1.04483045]
[1738173989009,8.5e-07,102210.0,102200.0,0.50714465]
[1738173989226,8.5e-07,102210.0,102200.0,1.27577857]
[1738173989436,8.5e-07,102210.0,102200.0,1.30482512]
[1738173990507,8.5e-07,102210.0,102200.0,1.29482512]
[1738173990720,8.5e-07,102210.0,102200.0,1.22336268]
[1738173990954,8.5e-07,102210.0,102200.0,1.12336268]
[1738173991166,8.5e-07,102210.0,102200.0,1.21299512]
[1738173991364,8.5e-07,102210.0,102200.0,1.23926963]
[1738173991997,8.5e-07,102210.0,102200.0,1.24926963]
[1738173992455,6.8e-07,102220.0,102210.0,0.45012965]
[1738173992671,6.8e-07,102220.0,102210.0,1.22337235]
[1738173992882,6.8e-07,102220.0,102210.0,1.22096628]
[1738173993320,6.8e-07,102220.0,102210.0,1.24724079]
[1738173993568,1e-08,102230.0,102220.0,0.27711565]
[1738173993786,1e-08,102230.0,102220.0,0.51212503]
[1738173993993,1e-08,102230.0,102220.0,1.01514004]
[1738173994200,1e-08,102230.0,102220.0,0.91551369]
[1738173994618,1e-08,102230.0,102220.0,1.06514004]
[1738173994852,1e-08,102230.0,102220.0,0.73669688]
[1738173995139,1e-08,102230.0,102220.0,0.73707053]
[1738173995349,1e-08,102230.0,102220.0,0.63707053]
[1738173995766,1e-08,102230.0,102220.0,0.63669688]
[1738173995973,1e-08,102230.0,102220.0,0.64007053]
[1738173996210,1e-08,102230.0,102220.0,0.74007053]
[1738173996421,1e-08,102230.0,102220.0,0.73707053]
[1738173996834,1e-08,102230.0,102220.0,0.73807053]
[1738173997248,1e-08,102230.0,102220.0,0.63807053]
[1738173997877,1e-08,102230.0,102220.0,0.63769688]
[1738173998083,1e-08,102230.0,102220.0,0.63807053]
[1738173998286,1e-08,102230.0,102220.0,0.63669688]
[1738173998493,1e-08,102230.0,102220.0,0.63807053]
[1738173998494,0.09846595,102230.0,102220.0,0.63807053]
[1738173998703,1e-08,102230.0,102220.0,0.63807053]
[1738173998936,1e-08,102230.0,102220.0,0.63707053]
[1738173999334,1e-08,102230.0,102220.0,0.73707053]
[1738173999745,1e-08,102230.0,102220.0,0.83431369]
[1738174000150,1e-08,102230.0,102220.0,0.83531369]
[1738174000397,1e-08,102230.0,102220.0,0.98531369]
[1738174000608,1e-08,102230.0,102220.0,1.08531369]
[1738174000817,1e-08,102230.0,102220.0,1.13071369]
[1738174002346,1e-08,102230.0,102220.0,1.12934004]
[1738174002558,1e-08,102230.0,102220.0,1.12971369]
[1738174002799,1e-08,102230.0,102220.0,1.13171369]
[1738174004889,1e-08,102230.0,102220.0,1.13134004]
[1738174005115,1e-08,102230.0,102220.0,1.13171369]
[1738174005543,1e-08,102230.0,102220.0,1.17125604]
[1738174005789,1e-08,102230.0,102220.0,1.19425604]
[1738174006009,0.00029883,102240.0,102230.0,0.34710065]
[1738174006010,8.4e-07,102240.0,102230.0,0.34710065]
[1738174006212,8.4e-07,102240.0,102230.0,1.27494481]
[1738174006432,8.4e-07,102240.0,102230.0,0.95423224]
[1738174006645,8.4e-07,102240.0,102230.0,0.98723224]
[1738174006851,8.4e-07,102240.0,102230.0,1.03533224]
[1738174007272,0.00014565,102240.0,102230.0,1.03633224]
[1738174007486,0.00014565,102240.0,102230.0,1.18185224]
[1738174008571,6.5e-07,102240.0,102230.0,1.20385224]
[1738174008753,6.5e-07,102240.0,102230.0,1.10256235]
[1738174009004,6.5e-07,102240.0,102230.0,1.39906235]
[1738174009218,1.1e-07,102260.0,102250.0,0.52247265]
[1738174009432,1.1e-07,102260.0,102250.0,1.24894592]
[1738174009652,1.1e-07,102260.0,102250.0,1.24969581]
[1738174010949,1.1e-07,102260.0,102250.0,1.19909205]
[1738174011159,1.1e-07,102260.0,102250.0,1.16609205]
[1738174011374,1.1e-07,102260.0,102250.0,1.1664657]
[1738174011615,1.1e-07,102260.0,102250.0,1.1864657]
[1738174011853,1.1e-07,102260.0,102250.0,1.1894657]
[1738174012094,1.1e-07,102260.0,102250.0,0.9870657]
[1738174012860,1.1e-07,102260.0,102250.0,0.9840657]
[1738174013231,1.1e-07,102260.0,102250.0,0.9860657]
[1738174014124,1.1e-07,102260.0,102250.0,0.98569205]
[1738174014543,1.1e-07,102260.0,102250.0,0.9860657]
[1738174015005,1.1e-07,102260.0,102250.0,0.98569205]
[1738174015381,1.1e-07,102260.0,102250.0,0.9860657]
[1738174015586,1.1e-07,102260.0,102250.0,0.8360657]
[1738174015808,1.1e-07,102260.0,102250.0,0.73882254]
[1738174016010,1.1e-07,102260.0,102250.0,0.73844889]
[1738174016228,1.1e-07,102260.0,102250.0,0.63844889]
[1738174017321,1.1e-07,102260.0,102250.0,0.63882254]
[1738174018100,1.1e-07,102260.0,102250.0,0.63682254]
[1738174019369,1.1e-07,102260.0,102250.0,0.63782254]
[1738174020961,1.1e-07,102260.0,102250.0,0.63682254]
[1738174021476,1.1e-07,102260.0,102250.0,0.63644889]
[1738174021757,1.1e-07,102260.0,102250.0,0.63682254]
[1738174022200,1.1e-07,102260.0,102250.0,1.0840657]
[1738174022408,1.1e-07,102260.0,102250.0,1.29101195]
[1738174022630,1.1e-07,102260.0,102250.0,2.79101195]
[1738174023262,1.1e-07,102260.0,102250.0,2.89425195]
[1738174023477,1.1e-07,102260.0,102250.0,1.37388168]
[1738174023947,1.1e-07,102260.0,102250.0,1.39625533]
[1738174024478,1.1e-07,102260.0,102250.0,1.39425533]
[1738174024701,1.1e-07,102260.0,102250.0,1.40625533]
[1738174025083,7.3e-07,102280.0,102270.0,0.35037365]
[1738174025380,4.8e-07,102280.0,102270.0,1.11428103]
[1738174025599,5.2e-07,102290.0,102280.0,0.37562965]
[1738174025819,5.2e-07,102290.0,102280.0,1.01506906]
[1738174026221,5.2e-07,102290.0,102280.0,1.01581703]
[1738174026436,5.2e-07,102290.0,102280.0,1.01544338]
[1738174026802,5.2e-07,102290.0,102280.0,1.01581703]
[1738174026973,5.6e-07,102300.0,102290.0,1.18908965]
[1738174027182,5.6e-07,102300.0,102290.0,1.13606781]
[1738174027385,0.34220883,102370.0,102340.0,0.195412]
[1738174030088,0.58930716,102320.0,102300.0,0.53797265]
[1738174030328,0.58930716,102320.0,102300.0,0.73346465]
[1738174030532,0.24772557,102320.0,102310.0,0.146613]
[1738174030739,0.00048241,102320.0,102310.0,0.14698665]
[1738174030941,0.00048241,102320.0,102310.0,0.14753348]
[1738174031151,0.00048241,102320.0,102310.0,0.34477664]
[1738174031357,0.00148241,102320.0,102310.0,0.42617664]
[1738174031565,0.00148241,102320.0,102310.0,0.57617664]
[1738174031771,0.00048241,102320.0,102310.0,0.57617664]
[1738174032189,0.00148241,102320.0,102310.0,0.57617664]
[1738174032397,0.00148241,102320.0,102310.0,0.67617664]
[1738174032607,0.00148241,102320.0,102310.0,1.16486664]
[1738174033455,0.00048241,102320.0,102310.0,1.16486664]
[1738174033871,0.00048241,102320.0,102310.0,1.16786664]
[1738174034050,4.1e-07,102320.0,102310.0,1.21346664]
[1738174034254,4.1e-07,102320.0,102310.0,1.23046664]
[1738174034457,4.1e-07,102320.0,102310.0,1.23246664]
[1738174035028,4.1e-07,102320.0,102310.0,1.21246664]
[1738174035226,4.1e-07,102320.0,102310.0,1.23246664]
[1738174035433,4.1e-07,102320.0,102310.0,1.25156139]
[1738174035749,4.1e-07,102320.0,102310.0,1.24956139]
[1738174036658,0.00029883,102370.0,102360.0,0.24691465]
[1738174036867,0.0004436,102370.0,102360.0,0.24691465]
[1738174037044,0.0004436,102370.0,102360.0,0.73583599]
[1738174038036,0.09768676,102370.0,102360.0,0.63583599]
[1738174038455,0.24421376,102370.0,102360.0,0.63583599]
[1738174038675,0.24421376,102370.0,102360.0,0.48892134]
[1738174038883,0.54831376,102370.0,102360.0,0.48892134]
[1738174040148,0.71377629,102370.0,102360.0,0.48892134]
[1738174040754,0.71477629,102370.0,102360.0,0.48892134]
[1738174041411,0.72477629,102370.0,102360.0,0.48892134]
[1738174041624,0.55831376,102370.0,102360.0,0.48892134]
[1738174042084,0.54831376,102370.0,102360.0,0.48892134]
[1738174042302,0.39831376,102370.0,102360.0,0.63546234]
[1738174042513,0.39831376,102370.0,102360.0,0.48892134]
[1738174042719,0.54831376,102370.0,102360.0,0.48892134]
[1738174042924,0.39831376,102370.0,102360.0,0.48892134]
[1738174043146,0.55131376,102370.0,102360.0,0.63546234]
[1738174043371,0.55131376,102370.0,102360.0,0.48892134]
[1738174043559,0.54831376,102370.0,102360.0,0.48892134]
[1738174043767,0.29848676,102370.0,102360.0,0.63546234]
[1738174044179,0.24968676,102370.0,102360.0,0.63546234]
[1738174045090,0.39621376,102370.0,102360.0,0.63546234]
[1738174045443,0.24968676,102370.0,102360.0,0.63546234]
[1738174045787,0.39621376,102370.0,102360.0,0.63546234]
[1738174046184,0.39621376,102370.0,102360.0,0.48892134]
[1738174046409,0.41921376,102370.0,102360.0,0.48892134]
[1738174046931,0.39621376,102370.0,102360.0,0.63546234]
[1738174047138,0.09968676,102370.0,102360.0,0.63546234]
[1738174047290,0.1489706,102370.0,102360.0,0.63583599]
[1738174047700,0.24621376,102370.0,102360.0,0.63546234]
[1738174048015,0.0024436,102370.0,102360.0,0.63583599]
[1738174048226,0.39743484,102370.0,102360.0,0.48892134]
[1738174048393,0.49751376,102370.0,102360.0,0.48892134]
[1738174049443,0.24621376,102370.0,102360.0,0.48892134]
[1738174049683,0.24621376,102370.0,102360.0,0.63583599]
[1738174049876,0.09968676,102370.0,102360.0,0.48929499]
[1738174050183,0.24621376,102370.0,102360.0,0.63583599]
[1738174050476,0.09968676,102370.0,102360.0,0.63583599]
[1738174050727,0.0024436,102370.0,102360.0,0.63583599]
[1738174052442,0.0024436,102370.0,102360.0,0.81763599]
[1738174052628,0.24621376,102370.0,102360.0,0.48892134]
[1738174052840,0.39621376,102370.0,102360.0,0.48892134]
[1738174053047,0.58467629,102370.0,102360.0,0.48892134]
[1738174053263,0.59267629,102370.0,102360.0,0.48892134]
[1738174055420,0.59467629,102370.0,102360.0,0.48892134]
[1738174055626,0.27268676,102370.0,102360.0,0.63546234]
[1738174055831,0.09968676,102370.0,102360.0,0.63546234]
[1738174056064,0.09768676,102370.0,102360.0,0.63546234]
[1738174056262,0.10368676,102370.0,102360.0,0.63683599]
[1738174057321,0.09768676,102370.0,102360.0,0.63583599]
[1738174057529,0.0004436,102370.0,102360.0,0.63583599]
[1738174058372,0.24421376,102370.0,102360.0,0.63583599]
[1738174058549,0.09768676,102370.0,102360.0,0.63583599]
[1738174058768,0.09868676,102370.0,102360.0,0.63583599]
[1738174062612,0.24521376,102370.0,102360.0,0.63546234]
[1738174062951,0.24521376,102370.0,102360.0,0.48892134]
[1738174063122,0.58367629,102370.0,102360.0,0.48892134]
[1738174064154,0.41821376,102370.0,102360.0,0.48892134]
[1738174064551,0.39521376,102370.0,102360.0,0.63546234]
[1738174065561,0.39521376,102370.0,102360.0,0.48892134]
[1738174066013,0.56067629,102370.0,102360.0,0.48892134]
[1738174066443,0.56067629,102370.0,102360.0,0.63546234]
[1738174066651,0.39521376,102370.0,102360.0,0.48892134]
[1738174067593,0.09868676,102370.0,102360.0,0.63546234]
[1738174067793,0.09868676,102370.0,102360.0,0.63583599]
[1738174068212,0.0014436,102370.0,102360.0,0.81513599]
[1738174069018,0.0004436,102370.0,102360.0,0.81513599]
[1738174069435,0.0004436,102370.0,102360.0,0.91237915]
[1738174070473,0.0004436,102370.0,102360.0,1.09272184]
[1738174071690,0.0004436,102370.0,102360.0,1.09472184]
[1738174072451,0.0004436,102370.0,102360.0,1.10449308]
[1738174073298,0.0004436,102370.0,102360.0,1.07415039]
[1738174078203,6e-07,102370.0,102360.0,1.14585039]
[1738174078423,0.0152749,102390.0,102380.0,0.62618565]
[1738174078638,0.0152749,102390.0,102380.0,1.21180881]
[1738174078856,0.0152749,102390.0,102380.0,1.24250826]
[1738174079088,0.0152749,102390.0,102380.0,1.21224691]
[1738174080131,0.0152749,102390.0,102380.0,1.21524691]
[1738174080539,9e-07,102390.0,102380.0,1.21524691]